[Event "*** SCC Grand Prix: Titled Tuesday Blitz"]
[Site "Chess.com"]
[Date "2020.06.23"]
[Round "6"]
[White "exoticprincess"]
[Black "Benjoneliere44"]
[Result "1-0"]
[WhiteElo "2782"]
[BlackElo "2550"]
[TimeControl "180+1"]
[EndTime "11:06:20 PDT"]
[Termination "exoticprincess won on time"]

1. e4 {[%clk 0:03:00.9]} 1... c5 {[%clk 0:03:00.4]} 2. c3 {[%clk 0:03:00.7]}
2... d6 {[%clk 0:02:55.9]} 3. d4 {[%clk 0:02:59.3]} 3... Nf6 {[%clk 0:02:56.4]}
4. Bd3 {[%clk 0:02:57.1]} 4... Nc6 {[%clk 0:02:48.5]} 5. Ne2 {[%clk 0:02:54.6]}
5... e5 {[%clk 0:02:45.3]} 6. d5 {[%clk 0:02:54.3]} 6... Ne7 {[%clk 0:02:44.9]}
7. a4 {[%clk 0:02:54.1]} 7... Ng6 {[%clk 0:02:44.9]} 8. Na3 {[%clk 0:02:54.2]}
8... Be7 {[%clk 0:02:45.3]} 9. O-O {[%clk 0:02:53.4]} 9... O-O {[%clk
0:02:45.4]} 10. f3 {[%clk 0:02:52.7]} 10... Nh5 {[%clk 0:02:38.3]} 11. Nc4
{[%clk 0:02:50.8]} 11... Nhf4 {[%clk 0:02:34.7]} 12. Nxf4 {[%clk 0:02:50.5]}
12... Nxf4 {[%clk 0:02:32.2]} 13. Bxf4 {[%clk 0:02:49]} 13... exf4 {[%clk
0:02:33.1]} 14. e5 {[%clk 0:02:49.3]} 14... dxe5 {[%clk 0:02:28.1]} 15. d6
{[%clk 0:02:44.4]} 15... Bf6 {[%clk 0:02:25.2]} 16. Re1 {[%clk 0:02:41.6]} 16...
g6 {[%clk 0:02:12.4]} 17. Be4 {[%clk 0:02:38.9]} 17... Rb8 {[%clk 0:02:09.2]}
18. Bd5 {[%clk 0:02:36.6]} 18... Kg7 {[%clk 0:01:59]} 19. Qb3 {[%clk 0:02:30.2]}
19... b6 {[%clk 0:01:44.9]} 20. Rad1 {[%clk 0:02:30]} 20... Ba6 {[%clk
0:01:38.8]} 21. Bc6 {[%clk 0:02:24]} 21... Bxc4 {[%clk 0:01:29.2]} 22. Qxc4
{[%clk 0:02:24.9]} 22... Qc8 {[%clk 0:01:08.4]} 23. Bb5 {[%clk 0:02:19.4]} 23...
Qf5 {[%clk 0:01:00.5]} 24. Qd5 {[%clk 0:02:13.9]} 24... Rfd8 {[%clk 0:00:51.5]}
25. d7 {[%clk 0:02:14]} 25... g5 {[%clk 0:00:46.9]} 26. Bc4 {[%clk 0:02:12.8]}
26... Qg6 {[%clk 0:00:46.9]} 27. Qc6 {[%clk 0:02:10.9]} 27... e4 {[%clk
0:00:44.7]} 28. Qxe4 {[%clk 0:02:03.8]} 28... Qxe4 {[%clk 0:00:43.8]} 29. Rxe4
{[%clk 0:02:04.3]} 29... Kf8 {[%clk 0:00:41.6]} 30. Bb5 {[%clk 0:02:03.6]} 30...
h6 {[%clk 0:00:30.2]} 31. Kf1 {[%clk 0:02:01.5]} 31... Kg7 {[%clk 0:00:28]} 32.
Rd6 {[%clk 0:02:01.4]} 32... Rb7 {[%clk 0:00:25.6]} 33. Re8 {[%clk 0:02:00.9]}
33... Rbb8 {[%clk 0:00:24.8]} 34. Ke2 {[%clk 0:01:59.5]} 34... a6 {[%clk
0:00:17.4]} 35. Bc6 {[%clk 0:01:59.1]} 35... b5 {[%clk 0:00:16.6]} 36. axb5
{[%clk 0:01:55.4]} 36... axb5 {[%clk 0:00:17.5]} 37. Kd3 {[%clk 0:01:55.4]}
37... c4+ {[%clk 0:00:17.2]} 38. Ke4 {[%clk 0:01:55.4]} 38... b4 {[%clk
0:00:17.1]} 39. cxb4 {[%clk 0:01:46.1]} 39... Bxb2 {[%clk 0:00:18]} 40. b5
{[%clk 0:01:46.3]} 40... c3 {[%clk 0:00:18.1]} 41. Kd3 {[%clk 0:01:46.4]} 41...
Ba3 {[%clk 0:00:16.2]} 42. Rd5 {[%clk 0:01:46]} 42... Bb4 {[%clk 0:00:13.7]} 43.
Rxd8 {[%clk 0:01:45.8]} 43... Rxd8 {[%clk 0:00:13.2]} 44. Re5 {[%clk 0:01:46.3]}
44... Kf6 {[%clk 0:00:11.9]} 45. Re8 {[%clk 0:01:46.2]} 45... Ba5 {[%clk
0:00:12.2]} 46. Kc2 {[%clk 0:01:45.9]} 46... h5 {[%clk 0:00:09.9]} 47. Kb3
{[%clk 0:01:45.4]} 47... g4 {[%clk 0:00:09.9]} 48. h3 {[%clk 0:01:44.6]} 48...
gxh3 {[%clk 0:00:09.3]} 49. gxh3 {[%clk 0:01:44.7]} 49... h4 {[%clk 0:00:09.8]}
50. Kc2 {[%clk 0:01:43.4]} 50... Kf5 {[%clk 0:00:08.5]} 51. Re4 {[%clk
0:01:36.7]} 51... f6 {[%clk 0:00:06.2]} 52. Ra4 {[%clk 0:01:36.6]} 52... Bc7
{[%clk 0:00:05.2]} 53. Kxc3 {[%clk 0:01:36.8]} 53... Ke5 {[%clk 0:00:04.8]} 54.
Re4+ {[%clk 0:01:35.2]} 54... Kd6 {[%clk 0:00:05.1]} 55. Rxf4 {[%clk 0:01:34.8]}
55... Kc5 {[%clk 0:00:04]} 56. Rc4+ {[%clk 0:01:33.4]} 56... Kb6 {[%clk
0:00:04.3]} 57. Rxh4 {[%clk 0:01:33.4]} 57... Rg8 {[%clk 0:00:03.9]} 58. Rg4
{[%clk 0:01:32.3]} 58... Rh8 {[%clk 0:00:03.4]} 59. h4 {[%clk 0:01:31.8]} 59...
f5 {[%clk 0:00:04]} 60. Ra4 {[%clk 0:01:30.6]} 60... Be5+ {[%clk 0:00:01.7]} 61.
Kd3 {[%clk 0:01:29.9]} 61... Bc7 {[%clk 0:00:02.3]} 62. Ra6+ {[%clk 0:01:27.6]}
62... Kc5 {[%clk 0:00:02.6]} 63. Ra8 {[%clk 0:01:27.1]} 63... Rxh4 {[%clk
0:00:01.6]} 64. d8=Q {[%clk 0:01:26.4]} 64... Bxd8 {[%clk 0:00:01.1]} 65. Rxd8
{[%clk 0:01:27.3]} 1-0

[Event "*** SCC Grand Prix: Titled Tuesday Blitz"]
[Site "Chess.com"]
[Date "2020.06.23"]
[Round "6"]
[White "JoliyRoger"]
[Black "jlandaw"]
[Result "0-1"]
[WhiteElo "2294"]
[BlackElo "2556"]
[TimeControl "180+1"]
[EndTime "11:06:20 PDT"]
[Termination "jlandaw won on time"]

1. Nf3 {[%clk 0:02:39.5]} 1... Nf6 {[%clk 0:02:59.4]} 2. c4 {[%clk 0:02:36.8]}
2... e6 {[%clk 0:02:58.4]} 3. d4 {[%clk 0:02:37.2]} 3... b6 {[%clk 0:02:58.2]}
4. a3 {[%clk 0:02:37]} 4... Ba6 {[%clk 0:02:57.8]} 5. Qc2 {[%clk 0:02:36.7]}
5... d5 {[%clk 0:02:55.1]} 6. cxd5 {[%clk 0:02:34.4]} 6... exd5 {[%clk 0:02:55]}
7. Nc3 {[%clk 0:02:32.4]} 7... Bd6 {[%clk 0:02:45.2]} 8. g3 {[%clk 0:02:31.3]}
8... O-O {[%clk 0:02:22.2]} 9. Bg2 {[%clk 0:02:31.6]} 9... Re8 {[%clk
0:02:22.6]} 10. O-O {[%clk 0:02:31.9]} 10... c5 {[%clk 0:02:23]} 11. Bg5 {[%clk
0:02:26.6]} 11... Be7 {[%clk 0:02:12.1]} 12. Rad1 {[%clk 0:02:22.5]} 12... Nbd7
{[%clk 0:02:07.5]} 13. Rfe1 {[%clk 0:02:06.6]} 13... h6 {[%clk 0:01:52.6]} 14.
Bxf6 {[%clk 0:01:20.3]} 14... Nxf6 {[%clk 0:01:53.5]} 15. Ne5 {[%clk 0:01:20.4]}
15... Bb7 {[%clk 0:01:19.2]} 16. Qa4 {[%clk 0:01:16.2]} 16... Qc7 {[%clk
0:01:07]} 17. Nf3 {[%clk 0:00:55.6]} 17... Bc6 {[%clk 0:00:59.7]} 18. Qc2 {[%clk
0:00:51.9]} 18... Rad8 {[%clk 0:00:58.8]} 19. e3 {[%clk 0:00:46.6]} 19... Bd6
{[%clk 0:00:49.4]} 20. Rc1 {[%clk 0:00:34.3]} 20... c4 {[%clk 0:00:46.9]} 21.
Rcd1 {[%clk 0:00:31.2]} 21... a5 {[%clk 0:00:43.2]} 22. Nh4 {[%clk 0:00:26.8]}
22... b5 {[%clk 0:00:41.6]} 23. Nf5 {[%clk 0:00:21.1]} 23... b4 {[%clk
0:00:37.1]} 24. Nxd6 {[%clk 0:00:15.7]} 24... Qxd6 {[%clk 0:00:38]} 25. axb4
{[%clk 0:00:15.6]} 25... axb4 {[%clk 0:00:37.5]} 26. Nb1 {[%clk 0:00:15.3]}
26... Ra8 {[%clk 0:00:36.6]} 27. Nd2 {[%clk 0:00:10.4]} 27... Ra1 {[%clk
0:00:30.2]} 28. Qb1 {[%clk 0:00:10.9]} 28... Rxb1 {[%clk 0:00:30.1]} 29. Rxb1
{[%clk 0:00:11.5]} 29... Ra8 {[%clk 0:00:29.7]} 30. Nf3 {[%clk 0:00:12]} 30...
Ra2 {[%clk 0:00:28.5]} 31. Ne5 {[%clk 0:00:12.3]} 31... Ba4 {[%clk 0:00:28.8]}
32. Ra1 {[%clk 0:00:11.5]} 32... b3 {[%clk 0:00:27.3]} 33. Rab1 {[%clk 0:00:11]}
33... c3 {[%clk 0:00:26.1]} 34. bxc3 {[%clk 0:00:10.8]} 34... b2 {[%clk
0:00:26.5]} 35. c4 {[%clk 0:00:11]} 35... Bc2 {[%clk 0:00:26]} 36. Bf1 {[%clk
0:00:03.2]} 36... Bxb1 {[%clk 0:00:25.2]} 37. Rxb1 {[%clk 0:00:03.9]} 37... Qb8
{[%clk 0:00:22.1]} 38. Nc6 {[%clk 0:00:03]} 38... Qb3 {[%clk 0:00:21.6]} 39.
cxd5 {[%clk 0:00:03.3]} 39... Ra1 {[%clk 0:00:21.6]} 40. Bd3 {[%clk 0:00:03]}
40... Qxd3 {[%clk 0:00:20.6]} 0-1

[Event "*** SCC Grand Prix: Titled Tuesday Blitz"]
[Site "Chess.com"]
[Date "2020.06.23"]
[Round "6"]
[White "VMikhalevski"]
[Black "mishanick"]
[Result "1-0"]
[WhiteElo "2808"]
[BlackElo "2991"]
[TimeControl "180+1"]
[EndTime "11:06:22 PDT"]
[Termination "VMikhalevski won on time"]

1. d4 {[%clk 0:03:00.9]} 1... Nf6 {[%clk 0:02:59.9]} 2. Nf3 {[%clk 0:03:00.9]}
2... d5 {[%clk 0:03:00.1]} 3. c4 {[%clk 0:03:00.1]} 3... e6 {[%clk 0:03:00.4]}
4. e3 {[%clk 0:02:58]} 4... Be7 {[%clk 0:02:59.2]} 5. b3 {[%clk 0:02:56.3]} 5...
O-O {[%clk 0:02:59.1]} 6. Bb2 {[%clk 0:02:56.5]} 6... b6 {[%clk 0:02:58.2]} 7.
Nbd2 {[%clk 0:02:55.5]} 7... Bb7 {[%clk 0:02:58.6]} 8. Be2 {[%clk 0:02:55.1]}
8... c5 {[%clk 0:02:59.1]} 9. O-O {[%clk 0:02:54.8]} 9... cxd4 {[%clk
0:02:59.5]} 10. exd4 {[%clk 0:02:53.7]} 10... Nc6 {[%clk 0:03:00.1]} 11. Re1
{[%clk 0:02:43.7]} 11... Rc8 {[%clk 0:03:00.2]} 12. Bf1 {[%clk 0:02:42.2]} 12...
Re8 {[%clk 0:02:59.9]} 13. Rc1 {[%clk 0:02:38.9]} 13... Bf8 {[%clk 0:02:58.9]}
14. Qc2 {[%clk 0:02:28.6]} 14... g6 {[%clk 0:02:52.3]} 15. Qb1 {[%clk
0:02:27.6]} 15... Bg7 {[%clk 0:02:52.2]} 16. Qa1 {[%clk 0:02:19.6]} 16... Rc7
{[%clk 0:02:23.5]} 17. c5 {[%clk 0:02:15.5]} 17... Nd7 {[%clk 0:02:18.6]} 18. a3
{[%clk 0:02:12.4]} 18... a5 {[%clk 0:02:00]} 19. Bb5 {[%clk 0:02:09.9]} 19...
Na7 {[%clk 0:01:22.5]} 20. Bxd7 {[%clk 0:02:03.5]} 20... Rxd7 {[%clk 0:01:23.4]}
21. b4 {[%clk 0:02:03.5]} 21... Rc7 {[%clk 0:01:06.3]} 22. Bc3 {[%clk 0:01:56]}
22... axb4 {[%clk 0:01:03.7]} 23. axb4 {[%clk 0:01:54]} 23... Nb5 {[%clk
0:01:03.9]} 24. Ne5 {[%clk 0:01:43.9]} 24... bxc5 {[%clk 0:01:00.9]} 25. bxc5
{[%clk 0:01:42.3]} 25... Qa8 {[%clk 0:00:51.7]} 26. Ba5 {[%clk 0:01:30.9]} 26...
Rcc8 {[%clk 0:00:51.2]} 27. Ndf3 {[%clk 0:01:28.1]} 27... Bc6 {[%clk 0:00:46.5]}
28. Bb6 {[%clk 0:01:23.2]} 28... Qb7 {[%clk 0:00:45.5]} 29. Qb2 {[%clk
0:01:21.5]} 29... Ra8 {[%clk 0:00:39]} 30. Re3 {[%clk 0:01:14.9]} 30... Bh6
{[%clk 0:00:29.6]} 31. Ng4 {[%clk 0:01:03.4]} 31... Bg7 {[%clk 0:00:28.3]} 32.
Rb3 {[%clk 0:00:56.8]} 32... Nc7 {[%clk 0:00:17]} 33. Nge5 {[%clk 0:00:53.2]}
33... Ba4 {[%clk 0:00:17.2]} 34. Rb4 {[%clk 0:00:49.7]} 34... f6 {[%clk
0:00:14.5]} 35. c6 {[%clk 0:00:46.2]} 35... Qc8 {[%clk 0:00:14.6]} 36. Nd3
{[%clk 0:00:45.1]} 36... Bf8 {[%clk 0:00:11]} 37. Bc5 {[%clk 0:00:41]} 37... Bb5
{[%clk 0:00:08.1]} 38. Bxf8 {[%clk 0:00:36.6]} 38... Bxd3 {[%clk 0:00:07.9]} 39.
Bd6 {[%clk 0:00:32.6]} 39... Ra6 {[%clk 0:00:05.7]} 40. Rb7 {[%clk 0:00:29.1]}
40... Na8 {[%clk 0:00:03.2]} 41. c7 {[%clk 0:00:26.5]} 1-0

[Event "*** SCC Grand Prix: Titled Tuesday Blitz"]
[Site "Chess.com"]
[Date "2020.06.23"]
[Round "6"]
[White "mmmflatbread"]
[Black "Semetey"]
[Result "1-0"]
[WhiteElo "2774"]
[BlackElo "2532"]
[TimeControl "180+1"]
[EndTime "11:06:22 PDT"]
[Termination "mmmflatbread won by resignation"]

1. Nf3 {[%clk 0:03:00.9]} 1... g6 {[%clk 0:03:00.9]} 2. e4 {[%clk 0:02:59.1]}
2... Bg7 {[%clk 0:03:01.8]} 3. d4 {[%clk 0:02:59.2]} 3... d6 {[%clk 0:03:00.1]}
4. Bc4 {[%clk 0:02:56.4]} 4... Nf6 {[%clk 0:03:00.1]} 5. Qe2 {[%clk 0:02:56.8]}
5... O-O {[%clk 0:02:59.4]} 6. O-O {[%clk 0:02:57.3]} 6... Bg4 {[%clk
0:02:59.1]} 7. h3 {[%clk 0:02:57.5]} 7... Bxf3 {[%clk 0:02:59]} 8. Qxf3 {[%clk
0:02:58.4]} 8... Nfd7 {[%clk 0:02:59.3]} 9. c3 {[%clk 0:02:58]} 9... Nc6 {[%clk
0:02:48.9]} 10. Be3 {[%clk 0:02:56.7]} 10... e5 {[%clk 0:02:48.3]} 11. Rd1
{[%clk 0:02:55.5]} 11... exd4 {[%clk 0:02:37.6]} 12. cxd4 {[%clk 0:02:54.1]}
12... Nb4 {[%clk 0:02:19.8]} 13. Qe2 {[%clk 0:02:46.4]} 13... d5 {[%clk
0:02:08.5]} 14. exd5 {[%clk 0:02:43.2]} 14... Nb6 {[%clk 0:02:07.4]} 15. Nc3
{[%clk 0:02:39.3]} 15... N4xd5 {[%clk 0:02:07]} 16. Bb3 {[%clk 0:02:35.3]} 16...
Re8 {[%clk 0:01:39.6]} 17. Qf3 {[%clk 0:02:32.3]} 17... c6 {[%clk 0:01:39.6]}
18. Ne4 {[%clk 0:02:25.4]} 18... Qe7 {[%clk 0:01:35.8]} 19. Nc5 {[%clk
0:02:21.9]} 19... Rab8 {[%clk 0:01:24]} 20. Rd3 {[%clk 0:02:15.6]} 20... h6
{[%clk 0:01:00.4]} 21. a3 {[%clk 0:02:13.4]} 21... Qc7 {[%clk 0:00:34.9]} 22.
Bd2 {[%clk 0:02:07.6]} 22... Rbd8 {[%clk 0:00:34.4]} 23. Rc1 {[%clk 0:02:04.9]}
23... Nc8 {[%clk 0:00:29.7]} 24. Ne4 {[%clk 0:01:53.2]} 24... Nce7 {[%clk
0:00:25.5]} 25. h4 {[%clk 0:01:43.1]} 25... Nf5 {[%clk 0:00:22.2]} 26. Bxd5
{[%clk 0:01:37.9]} 26... Rxd5 {[%clk 0:00:21.3]} 27. Nf6+ {[%clk 0:01:37.5]}
27... Bxf6 {[%clk 0:00:20.4]} 28. Qxd5 {[%clk 0:01:38.4]} 28... Bxh4 {[%clk
0:00:18.4]} 29. Qf3 {[%clk 0:01:34.4]} 29... Bf6 {[%clk 0:00:17.8]} 30. g4
{[%clk 0:01:27.3]} 30... Nxd4 {[%clk 0:00:14.1]} 31. Qxf6 {[%clk 0:01:26.5]}
31... Ne2+ {[%clk 0:00:14.2]} 32. Kg2 {[%clk 0:01:18.2]} 32... Nxc1 {[%clk
0:00:14.3]} 33. Bxc1 {[%clk 0:01:17.8]} 33... Kh7 {[%clk 0:00:12.1]} 34. Bxh6
{[%clk 0:01:16]} 34... Qe5 {[%clk 0:00:11.1]} 35. Qxe5 {[%clk 0:01:02]} 35...
Rxe5 {[%clk 0:00:12]} 36. Be3 {[%clk 0:00:56.7]} 36... b6 {[%clk 0:00:09.3]} 37.
Rd7 {[%clk 0:00:56.3]} 37... Ra5 {[%clk 0:00:07]} 38. Rxf7+ {[%clk 0:00:55.3]}
38... Kg8 {[%clk 0:00:07.1]} 39. Rc7 {[%clk 0:00:55.5]} 39... c5 {[%clk
0:00:07.3]} 40. Bh6 {[%clk 0:00:55.3]} 40... a6 {[%clk 0:00:06.6]} 41. Rg7+
{[%clk 0:00:55.1]} 41... Kh8 {[%clk 0:00:05.6]} 42. Rxg6 {[%clk 0:00:55.3]}
42... Rb5 {[%clk 0:00:06.5]} 43. Bf4 {[%clk 0:00:45.2]} 43... Kh7 {[%clk
0:00:06]} 44. Rh6+ {[%clk 0:00:44.9]} 44... Kg7 {[%clk 0:00:05.2]} 45. Rc6
{[%clk 0:00:44.7]} 45... Kf7 {[%clk 0:00:05.1]} 46. Be5 {[%clk 0:00:44.5]} 46...
Rb3 {[%clk 0:00:05.1]} 47. g5 {[%clk 0:00:41.4]} 47... a5 {[%clk 0:00:05.5]} 48.
g6+ {[%clk 0:00:41.5]} 48... Ke7 {[%clk 0:00:05.9]} 49. g7 {[%clk 0:00:41.8]}
49... Kf7 {[%clk 0:00:06.2]} 50. Rc7+ {[%clk 0:00:41.9]} 1-0

[Event "*** SCC Grand Prix: Titled Tuesday Blitz"]
[Site "Chess.com"]
[Date "2020.06.23"]
[Round "6"]
[White "ElusiveCat"]
[Black "shineatchess"]
[Result "1/2-1/2"]
[WhiteElo "2343"]
[BlackElo "2134"]
[TimeControl "180+1"]
[EndTime "11:06:22 PDT"]
[Termination "Game drawn by repetition"]

1. d4 {[%clk 0:03:00.1]} 1... Nf6 {[%clk 0:02:59.9]} 2. c4 {[%clk 0:03:00.1]}
2... e6 {[%clk 0:03:00.2]} 3. Nc3 {[%clk 0:02:59.8]} 3... d5 {[%clk 0:02:58.9]}
4. cxd5 {[%clk 0:02:58.8]} 4... exd5 {[%clk 0:02:59.3]} 5. Bg5 {[%clk 0:02:58]}
5... c6 {[%clk 0:02:59.6]} 6. e3 {[%clk 0:02:57.9]} 6... Be7 {[%clk 0:02:57.2]}
7. Bd3 {[%clk 0:02:57.8]} 7... Nbd7 {[%clk 0:02:53.2]} 8. Qc2 {[%clk 0:02:54.4]}
8... h6 {[%clk 0:02:53.3]} 9. Bf4 {[%clk 0:02:54.2]} 9... Nh5 {[%clk 0:02:47.8]}
10. Be5 {[%clk 0:02:50.6]} 10... Nxe5 {[%clk 0:02:27.4]} 11. dxe5 {[%clk
0:02:51.5]} 11... Qc7 {[%clk 0:02:24.7]} 12. f4 {[%clk 0:02:45.9]} 12... Qb6
{[%clk 0:02:18.5]} 13. Qe2 {[%clk 0:02:27.9]} 13... g6 {[%clk 0:02:17]} 14. Nf3
{[%clk 0:02:22.7]} 14... Bg4 {[%clk 0:02:09.7]} 15. O-O {[%clk 0:02:16.1]} 15...
Nxf4 {[%clk 0:02:08.5]} 16. Qd2 {[%clk 0:02:12.2]} 16... Nxd3 {[%clk 0:02:04.3]}
17. Qxd3 {[%clk 0:02:13.1]} 17... Bxf3 {[%clk 0:01:57.5]} 18. gxf3 {[%clk
0:02:10]} 18... O-O-O {[%clk 0:01:57.1]} 19. Rac1 {[%clk 0:02:06.7]} 19... d4
{[%clk 0:01:37.2]} 20. Na4 {[%clk 0:01:56.7]} 20... Qa5 {[%clk 0:01:32.3]} 21.
b3 {[%clk 0:01:42.7]} 21... Qxe5 {[%clk 0:01:30]} 22. e4 {[%clk 0:01:36]} 22...
Qf4 {[%clk 0:01:12.5]} 23. Kh1 {[%clk 0:01:32.8]} 23... h5 {[%clk 0:01:04.9]}
24. Nc5 {[%clk 0:01:13.3]} 24... Bxc5 {[%clk 0:00:40.4]} 25. Rxc5 {[%clk
0:01:14.2]} 25... g5 {[%clk 0:00:32.7]} 26. Rf5 {[%clk 0:01:10.9]} 26... Qc7
{[%clk 0:00:30.7]} 27. b4 {[%clk 0:01:05.3]} 27... g4 {[%clk 0:00:28.7]} 28. f4
{[%clk 0:01:03.2]} 28... Rhe8 {[%clk 0:00:23.5]} 29. Rc1 {[%clk 0:00:49.4]}
29... Qe7 {[%clk 0:00:22.2]} 30. e5 {[%clk 0:00:31.4]} 30... Qxb4 {[%clk
0:00:21]} 31. Rxf7 {[%clk 0:00:30.2]} 31... Rd7 {[%clk 0:00:19.5]} 32. Qf5
{[%clk 0:00:29.9]} 32... Rd8 {[%clk 0:00:17.6]} 33. e6 {[%clk 0:00:29]} 33...
Rxf7 {[%clk 0:00:15.1]} 34. Qxf7 {[%clk 0:00:22.4]} 34... d3 {[%clk 0:00:13.5]}
35. e7 {[%clk 0:00:19.9]} 35... Qe4+ {[%clk 0:00:13.2]} 36. Kg1 {[%clk
0:00:20.1]} 36... Qe3+ {[%clk 0:00:12.6]} 37. Kg2 {[%clk 0:00:20.4]} 37... Qe2+
{[%clk 0:00:12.3]} 38. Kg1 {[%clk 0:00:20.7]} 38... Qe3+ {[%clk 0:00:12.2]} 39.
Kg2 {[%clk 0:00:21.2]} 39... Qe2+ {[%clk 0:00:12.4]} 40. Kg1 {[%clk 0:00:21.3]}
40... Qe3+ {[%clk 0:00:12.4]} 1/2-1/2

[Event "*** SCC Grand Prix: Titled Tuesday Blitz"]
[Site "Chess.com"]
[Date "2020.06.23"]
[Round "6"]
[White "Batsai"]
[Black "vovachesss"]
[Result "1-0"]
[WhiteElo "2377"]
[BlackElo "2575"]
[TimeControl "180+1"]
[EndTime "11:06:23 PDT"]
[Termination "Batsai won by checkmate"]

1. e4 {[%clk 0:03:00.9]} 1... e5 {[%clk 0:02:59.8]} 2. Nf3 {[%clk 0:03:00.5]}
2... d5 {[%clk 0:03:00.3]} 3. exd5 {[%clk 0:02:59.7]} 3... e4 {[%clk 0:03:00.1]}
4. Qe2 {[%clk 0:02:56.2]} 4... Nf6 {[%clk 0:03:00]} 5. Nc3 {[%clk 0:02:50]} 5...
Be7 {[%clk 0:02:59.9]} 6. Nxe4 {[%clk 0:02:49.5]} 6... O-O {[%clk 0:02:59.7]} 7.
d3 {[%clk 0:02:40.5]} 7... Qxd5 {[%clk 0:02:57.8]} 8. g3 {[%clk 0:02:30.2]} 8...
Nc6 {[%clk 0:02:54]} 9. Bg2 {[%clk 0:02:28.8]} 9... Bg4 {[%clk 0:02:54.5]} 10.
Qe3 {[%clk 0:02:09.9]} 10... Nb4 {[%clk 0:02:14.6]} 11. Qe2 {[%clk 0:01:33.4]}
11... Nc6 {[%clk 0:01:23.9]} 12. c3 {[%clk 0:01:31.3]} 12... Rad8 {[%clk
0:01:07.5]} 13. O-O {[%clk 0:01:25.7]} 13... Qxd3 {[%clk 0:01:00.8]} 14. Nxf6+
{[%clk 0:01:22.3]} 14... Bxf6 {[%clk 0:01:00.7]} 15. Qxd3 {[%clk 0:01:23.2]}
15... Rxd3 {[%clk 0:01:01.2]} 16. Be3 {[%clk 0:01:22.6]} 16... Rfd8 {[%clk
0:00:55.3]} 17. h3 {[%clk 0:01:20.5]} 17... Bf5 {[%clk 0:00:49.1]} 18. g4 {[%clk
0:00:59.2]} 18... Be4 {[%clk 0:00:49.1]} 19. Rfe1 {[%clk 0:00:45]} 19... Na5
{[%clk 0:00:36.2]} 20. Nd4 {[%clk 0:00:36.9]} 20... Bxg2 {[%clk 0:00:35.3]} 21.
Kxg2 {[%clk 0:00:37.3]} 21... Nc4 {[%clk 0:00:34.3]} 22. Rad1 {[%clk 0:00:12.7]}
22... Nxb2 {[%clk 0:00:21.1]} 23. Rb1 {[%clk 0:00:09.8]} 23... Na4 {[%clk
0:00:12.7]} 24. Rxb7 {[%clk 0:00:09.2]} 24... c5 {[%clk 0:00:12.2]} 25. Nf5
{[%clk 0:00:07.2]} 25... c4 {[%clk 0:00:09.3]} 26. Bd4 {[%clk 0:00:05.9]} 26...
Bxd4 {[%clk 0:00:07.1]} 27. cxd4 {[%clk 0:00:06.4]} 27... g6 {[%clk 0:00:06.9]}
28. Nh6+ {[%clk 0:00:03.6]} 28... Kg7 {[%clk 0:00:05.6]} 29. g5 {[%clk
0:00:03.7]} 29... Rf8 {[%clk 0:00:03.5]} 30. Ree7 {[%clk 0:00:03.4]} 30... Rxd4
{[%clk 0:00:02.5]} 31. Rxf7+ {[%clk 0:00:03.2]} 31... Rxf7 {[%clk 0:00:02.9]}
32. Rxf7+ {[%clk 0:00:04.1]} 32... Kh8 {[%clk 0:00:03.2]} 33. Rf8+ {[%clk
0:00:04.2]} 33... Kg7 {[%clk 0:00:03.4]} 34. Rg8# {[%clk 0:00:05.1]} 1-0

[Event "*** SCC Grand Prix: Titled Tuesday Blitz"]
[Site "Chess.com"]
[Date "2020.06.23"]
[Round "6"]
[White "ErikRonka"]
[Black "HanSchut"]
[Result "0-1"]
[WhiteElo "2380"]
[BlackElo "2216"]
[TimeControl "180+1"]
[EndTime "11:06:23 PDT"]
[Termination "HanSchut won by checkmate"]

1. e4 {[%clk 0:03:00.9]} 1... c5 {[%clk 0:02:59.7]} 2. Nf3 {[%clk 0:03:00.2]}
2... d6 {[%clk 0:03:00.1]} 3. d4 {[%clk 0:03:00.8]} 3... cxd4 {[%clk 0:03:00.7]}
4. Nxd4 {[%clk 0:03:01.7]} 4... Nf6 {[%clk 0:03:00.1]} 5. Nc3 {[%clk 0:03:02.1]}
5... a6 {[%clk 0:03:00.2]} 6. f3 {[%clk 0:03:02.7]} 6... e5 {[%clk 0:03:00.2]}
7. Nb3 {[%clk 0:03:03.3]} 7... Be6 {[%clk 0:03:00.2]} 8. Be3 {[%clk 0:03:03.9]}
8... h5 {[%clk 0:03:00.3]} 9. Nd5 {[%clk 0:03:04.3]} 9... Bxd5 {[%clk
0:03:00.3]} 10. exd5 {[%clk 0:03:05.2]} 10... Nbd7 {[%clk 0:03:00.4]} 11. Qd2
{[%clk 0:03:03.9]} 11... g6 {[%clk 0:03:00.4]} 12. Be2 {[%clk 0:03:03.4]} 12...
Nb6 {[%clk 0:02:50.7]} 13. c4 {[%clk 0:02:56.5]} 13... Rc8 {[%clk 0:02:49.8]}
14. Rc1 {[%clk 0:02:55.6]} 14... Bg7 {[%clk 0:02:28.2]} 15. Na5 {[%clk
0:02:52.9]} 15... Qc7 {[%clk 0:02:21.2]} 16. b4 {[%clk 0:02:43.9]} 16... O-O
{[%clk 0:01:57.7]} 17. O-O {[%clk 0:02:40.4]} 17... e4 {[%clk 0:01:58.1]} 18. f4
{[%clk 0:02:34.1]} 18... Rfe8 {[%clk 0:01:39.5]} 19. h3 {[%clk 0:02:03.9]} 19...
h4 {[%clk 0:01:31.2]} 20. f5 {[%clk 0:01:52.7]} 20... Nbd7 {[%clk 0:01:08.9]}
21. fxg6 {[%clk 0:01:42.7]} 21... fxg6 {[%clk 0:01:09.8]} 22. c5 {[%clk
0:01:40.6]} 22... Ne5 {[%clk 0:00:59]} 23. Nc4 {[%clk 0:00:55.9]} 23... Nxc4
{[%clk 0:00:45.5]} 24. Bxc4 {[%clk 0:00:56]} 24... Kh7 {[%clk 0:00:45.1]} 25.
Rf2 {[%clk 0:00:43.7]} 25... Qe7 {[%clk 0:00:35.2]} 26. Rcf1 {[%clk 0:00:39.7]}
26... Nh5 {[%clk 0:00:28.8]} 27. Rf7 {[%clk 0:00:37]} 27... Qe5 {[%clk
0:00:17.7]} 28. Rxb7 {[%clk 0:00:29.4]} 28... Rf8 {[%clk 0:00:15.2]} 29. Rxf8
{[%clk 0:00:23.1]} 29... Rxf8 {[%clk 0:00:15.1]} 30. c6 {[%clk 0:00:19]} 30...
Qg3 {[%clk 0:00:11.2]} 31. Rxg7+ {[%clk 0:00:12]} 31... Kxg7 {[%clk 0:00:11.2]}
32. c7 {[%clk 0:00:12.2]} 32... Nf4 {[%clk 0:00:11.3]} 33. Bxf4 {[%clk 0:00:11]}
33... Rxf4 {[%clk 0:00:11.6]} 34. c8=Q {[%clk 0:00:10.7]} 34... e3 {[%clk
0:00:12]} 35. Qd7+ {[%clk 0:00:09.8]} 35... Kh6 {[%clk 0:00:11.6]} 36. Qe2
{[%clk 0:00:09.3]} 36... Rf2 {[%clk 0:00:09.8]} 37. Qeg4 {[%clk 0:00:02.9]}
37... Rxg2+ {[%clk 0:00:09.9]} 38. Kf1 {[%clk 0:00:03.4]} 38... Qf2# {[%clk
0:00:09.4]} 0-1